[Event "Late-Titled-Tuesday-Blitz-April-16-2024"]
[Site "Chess.com"]
[Date "2024.04.16"]
[Round "11"]
[White "Fengwi"]
[Black "LUISMIGUELOV"]
[Result "1-0"]
[WhiteElo "2430"]
[BlackElo "2197"]
[TimeControl "180+1"]
[EndTime "16:05:20 PDT"]
[Termination "Fengwi won by checkmate"]

1. Nf3 {[%clk 0:03:00.9]} 1... d6 {[%clk 0:03:00.3]} 2. d4 {[%clk 0:02:59.8]}
2... b6 {[%clk 0:02:59.7]} 3. e4 {[%clk 0:02:58.8]} 3... Bb7 {[%clk 0:03:00.2]}
4. Bd3 {[%clk 0:02:57.8]} 4... g6 {[%clk 0:03:00.4]} 5. O-O {[%clk 0:02:57.1]}
5... Bg7 {[%clk 0:03:00.8]} 6. Re1 {[%clk 0:02:57.2]} 6... Nd7 {[%clk
0:03:00.3]} 7. c4 {[%clk 0:02:56.6]} 7... e5 {[%clk 0:02:58.5]} 8. d5 {[%clk
0:02:54.1]} 8... Ne7 {[%clk 0:02:57.8]} 9. Nc3 {[%clk 0:02:43.8]} 9... O-O
{[%clk 0:02:56.5]} 10. b4 {[%clk 0:02:43.4]} 10... c6 {[%clk 0:02:56.5]} 11.
dxc6 {[%clk 0:02:35.7]} 11... Bxc6 {[%clk 0:02:49.8]} 12. Bg5 {[%clk 0:02:22]}
12... h6 {[%clk 0:02:44.7]} 13. Be3 {[%clk 0:02:16.9]} 13... Qc7 {[%clk
0:02:41.4]} 14. Rc1 {[%clk 0:02:14.2]} 14... f5 {[%clk 0:02:40.4]} 15. Nd5
{[%clk 0:02:10.2]} 15... Bxd5 {[%clk 0:02:25.3]} 16. cxd5 {[%clk 0:02:09.4]}
16... Qd8 {[%clk 0:02:23.9]} 17. exf5 {[%clk 0:01:47.5]} 17... gxf5 {[%clk
0:02:23.3]} 18. Bb5 {[%clk 0:01:44.9]} 18... e4 {[%clk 0:02:11]} 19. Nd4 {[%clk
0:01:44.1]} 19... Bxd4 {[%clk 0:02:01.6]} 20. Qxd4 {[%clk 0:01:40.3]} 20... Ne5
{[%clk 0:01:57.2]} 21. Bxh6 {[%clk 0:01:33.1]} 21... Rf6 {[%clk 0:01:56.9]} 22.
Bf4 {[%clk 0:01:29.1]} 22... N7g6 {[%clk 0:01:54.2]} 23. Bg5 {[%clk 0:01:27.4]}
23... Qf8 {[%clk 0:01:48.9]} 24. Bxf6 {[%clk 0:01:26.2]} 24... Qxf6 {[%clk
0:01:48.7]} 25. Qe3 {[%clk 0:01:22.3]} 25... Ng4 {[%clk 0:01:43.7]} 26. Qg3
{[%clk 0:01:18.6]} 26... Rf8 {[%clk 0:01:24.9]} 27. Rc7 {[%clk 0:01:02.7]} 27...
Rf7 {[%clk 0:01:23.9]} 28. Rxf7 {[%clk 0:01:00.4]} 28... Kxf7 {[%clk 0:01:19.9]}
29. Bd7 {[%clk 0:00:58.1]} 29... Ke7 {[%clk 0:01:03.5]} 30. Be6 {[%clk
0:00:54.1]} 30... Nf8 {[%clk 0:01:01.6]} 31. f3 {[%clk 0:00:45.7]} 31... Nxe6
{[%clk 0:00:41.7]} 32. fxg4 {[%clk 0:00:40.3]} 32... f4 {[%clk 0:00:38.4]} 33.
Qf2 {[%clk 0:00:30.3]} 33... e3 {[%clk 0:00:36.3]} 34. Qc2 {[%clk 0:00:26.6]}
34... Nd4 {[%clk 0:00:29.3]} 35. Qh7+ {[%clk 0:00:26]} 35... Kd8 {[%clk
0:00:26]} 36. Qg8+ {[%clk 0:00:22.2]} 36... Kc7 {[%clk 0:00:22.7]} 37. Rc1+
{[%clk 0:00:22]} 37... Kd7 {[%clk 0:00:09.5]} 38. Qc8+ {[%clk 0:00:21]} 38...
Ke7 {[%clk 0:00:09.4]} 39. Rc7# {[%clk 0:00:21.5]} 1-0

[Event "Late-Titled-Tuesday-Blitz-April-16-2024"]
[Site "Chess.com"]
[Date "2024.04.16"]
[Round "11"]
[White "CMButgood"]
[Black "rhwr"]
[Result "1-0"]
[WhiteElo "2070"]
[BlackElo "2216"]
[TimeControl "180+1"]
[EndTime "16:05:22 PDT"]
[Termination "CMButgood won on time"]

1. e4 {[%clk 0:03:00.9]} 1... c5 {[%clk 0:03:00.9]} 2. Nf3 {[%clk 0:03:01.1]}
2... d6 {[%clk 0:03:01.2]} 3. d4 {[%clk 0:03:02]} 3... cxd4 {[%clk 0:03:01.5]}
4. Nxd4 {[%clk 0:03:02.9]} 4... Nf6 {[%clk 0:03:01.5]} 5. Nc3 {[%clk 0:03:03.4]}
5... e5 {[%clk 0:03:02.1]} 6. Nb3 {[%clk 0:03:02.5]} 6... Be6 {[%clk 0:03:02.5]}
7. Be3 {[%clk 0:03:02.9]} 7... Be7 {[%clk 0:03:02.8]} 8. f3 {[%clk 0:03:03.1]}
8... O-O {[%clk 0:03:03.2]} 9. Qd2 {[%clk 0:03:03.3]} 9... a6 {[%clk 0:03:03.3]}
10. O-O-O {[%clk 0:03:03.6]} 10... b5 {[%clk 0:03:03.7]} 11. Kb1 {[%clk
0:03:02.3]} 11... b4 {[%clk 0:03:02]} 12. Nd5 {[%clk 0:03:02.7]} 12... Bxd5
{[%clk 0:02:58.9]} 13. exd5 {[%clk 0:03:02.9]} 13... a5 {[%clk 0:02:59.1]} 14.
Nc1 {[%clk 0:03:02]} 14... Nbd7 {[%clk 0:02:55.7]} 15. Bb5 {[%clk 0:03:01.2]}
15... Nb6 {[%clk 0:02:50.7]} 16. Bc6 {[%clk 0:03:01.7]} 16... Nc4 {[%clk
0:02:49.5]} 17. Qe2 {[%clk 0:03:00.1]} 17... Nxe3 {[%clk 0:02:49.1]} 18. Qxe3
{[%clk 0:02:58.8]} 18... Rb8 {[%clk 0:02:45.7]} 19. h3 {[%clk 0:02:58.8]} 19...
Nd7 {[%clk 0:02:35.8]} 20. Bxd7 {[%clk 0:02:54.7]} 20... Qxd7 {[%clk 0:02:35.5]}
21. h4 {[%clk 0:02:55.4]} 21... f5 {[%clk 0:02:32.7]} 22. g4 {[%clk 0:02:53.9]}
22... fxg4 {[%clk 0:02:28.1]} 23. fxg4 {[%clk 0:02:53.9]} 23... Rf4 {[%clk
0:02:25.8]} 24. g5 {[%clk 0:02:50.1]} 24... Rbf8 {[%clk 0:02:10.4]} 25. Nd3
{[%clk 0:02:36.9]} 25... Rf3 {[%clk 0:02:08.3]} 26. Qb6 {[%clk 0:02:34.8]} 26...
e4 {[%clk 0:02:04.8]} 27. Nc1 {[%clk 0:02:23.2]} 27... Bd8 {[%clk 0:02:01.1]}
28. Qd4 {[%clk 0:02:17.9]} 28... e3 {[%clk 0:01:41.5]} 29. Rde1 {[%clk 0:02:17]}
29... Re8 {[%clk 0:01:26.8]} 30. Rhf1 {[%clk 0:02:00.2]} 30... Qf5 {[%clk
0:01:20.3]} 31. Rxf3 {[%clk 0:01:49.3]} 31... Qxf3 {[%clk 0:01:21.2]} 32. Nd3
{[%clk 0:01:46.5]} 32... e2 {[%clk 0:01:00.5]} 33. Qf2 {[%clk 0:01:29.9]} 33...
Qxf2 {[%clk 0:00:28.4]} 34. Nxf2 {[%clk 0:01:30.8]} 34... Bb6 {[%clk 0:00:27.4]}
35. Nd3 {[%clk 0:01:30.4]} 35... Re4 {[%clk 0:00:19.3]} 36. Nc1 {[%clk
0:01:28.5]} 36... Bf2 {[%clk 0:00:16.6]} 37. Rxe2 {[%clk 0:01:28.2]} 37... Rxe2
{[%clk 0:00:16.6]} 38. Nxe2 {[%clk 0:01:29.1]} 38... Bxh4 {[%clk 0:00:16.9]} 39.
g6 {[%clk 0:01:24.9]} 39... hxg6 {[%clk 0:00:15.3]} 40. c4 {[%clk 0:01:18.7]}
40... bxc3 {[%clk 0:00:14.3]} 41. bxc3 {[%clk 0:01:18.9]} 41... g5 {[%clk
0:00:14.4]} 42. c4 {[%clk 0:01:16.9]} 42... g4 {[%clk 0:00:14.1]} 43. Kc2 {[%clk
0:01:16]} 43... g3 {[%clk 0:00:13.7]} 44. Kd3 {[%clk 0:01:15.1]} 44... g2 {[%clk
0:00:13.8]} 45. Ke3 {[%clk 0:01:15.6]} 45... Bd8 {[%clk 0:00:02.7]} 46. Kf3
{[%clk 0:01:15.1]} 46... Bb6 {[%clk 0:00:02.5]} 47. Kxg2 {[%clk 0:01:15.2]}
47... Kf7 {[%clk 0:00:03.4]} 48. Kf3 {[%clk 0:01:15.4]} 48... Kf6 {[%clk
0:00:04.3]} 49. Ke4 {[%clk 0:01:11.3]} 49... g5 {[%clk 0:00:03.3]} 50. Ng3
{[%clk 0:01:11.5]} 50... Bc5 {[%clk 0:00:02.1]} 51. a4 {[%clk 0:01:10.3]} 51...
Kg6 {[%clk 0:00:01.6]} 52. Kf3 {[%clk 0:01:10.2]} 52... Kf6 {[%clk 0:00:01.4]}
53. Ne4+ {[%clk 0:01:07.5]} 1-0

[Event "Late-Titled-Tuesday-Blitz-April-16-2024"]
[Site "Chess.com"]
[Date "2024.04.16"]
[Round "11"]
[White "CrushingKings"]
[Black "SaqoChess_Twitch"]
[Result "0-1"]
[WhiteElo "2593"]
[BlackElo "2704"]
[TimeControl "180+1"]
[EndTime "16:05:28 PDT"]
[Termination "SaqoChess_Twitch won on time"]

1. Nf3 {[%clk 0:03:00.9]} 1... d5 {[%clk 0:03:00.1]} 2. g3 {[%clk 0:03:00.2]}
2... e6 {[%clk 0:03:00.7]} 3. Bg2 {[%clk 0:03:00.5]} 3... Nf6 {[%clk 0:03:01.6]}
4. O-O {[%clk 0:03:01]} 4... Be7 {[%clk 0:03:02.5]} 5. c4 {[%clk 0:03:01.3]}
5... O-O {[%clk 0:03:03.4]} 6. b3 {[%clk 0:03:01.8]} 6... c5 {[%clk 0:03:03.1]}
7. cxd5 {[%clk 0:03:01.5]} 7... Nxd5 {[%clk 0:03:03.1]} 8. Bb2 {[%clk
0:03:01.5]} 8... Nc6 {[%clk 0:03:03.7]} 9. d4 {[%clk 0:03:01.6]} 9... Bf6 {[%clk
0:03:01.1]} 10. e4 {[%clk 0:03:01.3]} 10... Ndb4 {[%clk 0:02:59.5]} 11. e5
{[%clk 0:03:01.1]} 11... Be7 {[%clk 0:02:58.4]} 12. a3 {[%clk 0:02:53.4]} 12...
Nd5 {[%clk 0:02:58.4]} 13. dxc5 {[%clk 0:02:53.7]} 13... Bxc5 {[%clk 0:02:58.6]}
14. b4 {[%clk 0:02:53.8]} 14... Be7 {[%clk 0:02:58.6]} 15. Qb3 {[%clk
0:02:51.4]} 15... b5 {[%clk 0:02:56.7]} 16. Nbd2 {[%clk 0:02:44.6]} 16... a5
{[%clk 0:02:55.8]} 17. Rac1 {[%clk 0:02:28.8]} 17... Bb7 {[%clk 0:02:53.6]} 18.
bxa5 {[%clk 0:02:29]} 18... Nxa5 {[%clk 0:02:54.5]} 19. Qd1 {[%clk 0:02:06.2]}
19... b4 {[%clk 0:02:50.8]} 20. axb4 {[%clk 0:02:04.7]} 20... Nxb4 {[%clk
0:02:51.7]} 21. Ba3 {[%clk 0:01:16.4]} 21... Ba6 {[%clk 0:02:49.4]} 22. Bxb4
{[%clk 0:01:16]} 22... Bxb4 {[%clk 0:02:45.6]} 23. Re1 {[%clk 0:01:15.7]} 23...
Rc8 {[%clk 0:02:41.8]} 24. Rxc8 {[%clk 0:01:11.1]} 24... Qxc8 {[%clk 0:02:42.7]}
25. Qa4 {[%clk 0:01:10.4]} 25... Qc3 {[%clk 0:02:16.3]} 26. Ne4 {[%clk 0:01:09]}
26... Qa3 {[%clk 0:02:16.3]} 27. Qxa3 {[%clk 0:00:52.7]} 27... Bxa3 {[%clk
0:02:17.2]} 28. Ra1 {[%clk 0:00:52.7]} 28... Bb4 {[%clk 0:02:17.4]} 29. Bf1
{[%clk 0:00:47.4]} 29... Bb7 {[%clk 0:02:12.3]} 30. Nfd2 {[%clk 0:00:45.5]}
30... Nb3 {[%clk 0:02:07.7]} 31. Nxb3 {[%clk 0:00:32.8]} 31... Bxe4 {[%clk
0:02:08.1]} 32. Ra4 {[%clk 0:00:33.2]} 32... Rb8 {[%clk 0:02:05.7]} 33. Nc5
{[%clk 0:00:20.5]} 33... Bc2 {[%clk 0:01:34.8]} 34. Na6 {[%clk 0:00:19.8]} 34...
Bxa4 {[%clk 0:01:32.1]} 35. Nxb8 {[%clk 0:00:19.8]} 35... Bc3 {[%clk 0:01:29.7]}
36. f4 {[%clk 0:00:19.8]} 36... Kf8 {[%clk 0:01:23.4]} 37. Bg2 {[%clk
0:00:14.5]} 37... Ke7 {[%clk 0:01:20.6]} 38. Bc6 {[%clk 0:00:11.8]} 38... Bc2
{[%clk 0:00:51.5]} 39. Bb5 {[%clk 0:00:09.8]} 39... Kd8 {[%clk 0:00:45.1]} 40.
Nc6+ {[%clk 0:00:03.5]} 40... Kc7 {[%clk 0:00:45.1]} 41. Ne7 {[%clk 0:00:04.2]}
41... Be4 {[%clk 0:00:38.7]} 42. Ng8 {[%clk 0:00:02.5]} 42... h6 {[%clk
0:00:36.1]} 43. Be8 {[%clk 0:00:02.2]} 43... f5 {[%clk 0:00:34.2]} 0-1

[Event "Late-Titled-Tuesday-Blitz-April-16-2024"]
[Site "Chess.com"]
[Date "2024.04.16"]
[Round "11"]
[White "Denmark2015"]
[Black "dennisodessa"]
[Result "1-0"]
[WhiteElo "2610"]
[BlackElo "2548"]
[TimeControl "180+1"]
[EndTime "16:05:28 PDT"]
[Termination "Denmark2015 won by resignation"]

1. d4 {[%clk 0:03:00.9]} 1... Nf6 {[%clk 0:02:58.2]} 2. c4 {[%clk 0:02:59.2]}
2... e6 {[%clk 0:02:58.6]} 3. Nc3 {[%clk 0:02:59.1]} 3... Bb4 {[%clk 0:02:59.3]}
4. e3 {[%clk 0:02:59.4]} 4... b6 {[%clk 0:02:59.3]} 5. Ne2 {[%clk 0:02:59.7]}
5... Bb7 {[%clk 0:02:59.8]} 6. a3 {[%clk 0:03:00.3]} 6... Bd6 {[%clk 0:02:59.2]}
7. Ng3 {[%clk 0:02:44.9]} 7... O-O {[%clk 0:02:58.5]} 8. b4 {[%clk 0:02:18]}
8... Qe7 {[%clk 0:02:53.8]} 9. c5 {[%clk 0:02:14]} 9... Bxg3 {[%clk 0:02:53.2]}
10. hxg3 {[%clk 0:02:13.7]} 10... e5 {[%clk 0:02:53.8]} 11. dxe5 {[%clk
0:01:33.7]} 11... Qxe5 {[%clk 0:02:52]} 12. Qd4 {[%clk 0:01:31.7]} 12... Re8
{[%clk 0:02:36.2]} 13. Qxe5 {[%clk 0:01:30.2]} 13... Rxe5 {[%clk 0:02:37.1]} 14.
Bb2 {[%clk 0:01:22.9]} 14... Re7 {[%clk 0:02:13.9]} 15. Nb5 {[%clk 0:01:11.9]}
15... Na6 {[%clk 0:02:13.4]} 16. Bxf6 {[%clk 0:00:57.3]} 16... gxf6 {[%clk
0:02:14.2]} 17. Rc1 {[%clk 0:00:57.4]} 17... bxc5 {[%clk 0:02:01.5]} 18. bxc5
{[%clk 0:00:54.8]} 18... Re5 {[%clk 0:02:02]} 19. Rh4 {[%clk 0:00:46.4]} 19...
Rxc5 {[%clk 0:01:46.4]} 20. Rxc5 {[%clk 0:00:39.3]} 20... Nxc5 {[%clk
0:01:47.3]} 21. Nxc7 {[%clk 0:00:38.6]} 21... Rc8 {[%clk 0:01:47.9]} 22. Nb5
{[%clk 0:00:35.9]} 22... Nb3 {[%clk 0:01:40.6]} 23. Rc4 {[%clk 0:00:28.1]} 23...
Rxc4 {[%clk 0:01:36.5]} 24. Bxc4 {[%clk 0:00:29]} 24... Na5 {[%clk 0:01:37.2]}
25. Bf1 {[%clk 0:00:26.5]} 25... a6 {[%clk 0:01:22.2]} 26. Nd6 {[%clk
0:00:26.5]} 26... Bc6 {[%clk 0:01:19.8]} 27. Bxa6 {[%clk 0:00:26.4]} 27... Bxg2
{[%clk 0:01:19.2]} 28. e4 {[%clk 0:00:25.1]} 28... Kf8 {[%clk 0:01:16.3]} 29.
Ke2 {[%clk 0:00:21.4]} 29... Nb3 {[%clk 0:01:12.2]} 30. Bc4 {[%clk 0:00:13.3]}
30... Nc5 {[%clk 0:01:10.6]} 31. f3 {[%clk 0:00:12.4]} 31... Ne6 {[%clk
0:01:03.6]} 32. Kf2 {[%clk 0:00:11.2]} 32... Bh3 {[%clk 0:01:03.2]} 33. g4
{[%clk 0:00:10.9]} 33... h5 {[%clk 0:00:58.2]} 34. Kg3 {[%clk 0:00:09.8]} 34...
hxg4 {[%clk 0:00:58.2]} 35. fxg4 {[%clk 0:00:10.7]} 35... Ng5 {[%clk 0:00:58.5]}
36. a4 {[%clk 0:00:10.3]} 36... Ke7 {[%clk 0:00:57]} 37. Nf5+ {[%clk 0:00:10.6]}
37... Kd8 {[%clk 0:00:53.4]} 38. a5 {[%clk 0:00:10.9]} 38... Kc7 {[%clk
0:00:53.7]} 39. a6 {[%clk 0:00:08.6]} 39... Kb6 {[%clk 0:00:53]} 40. Nd6 {[%clk
0:00:08.3]} 40... Bxg4 {[%clk 0:00:39.4]} 41. Kxg4 {[%clk 0:00:08]} 41... Nxe4
{[%clk 0:00:39.5]} 42. Nxe4 {[%clk 0:00:07.8]} 42... d5 {[%clk 0:00:39.4]} 43.
Be2 {[%clk 0:00:06.7]} 43... dxe4 {[%clk 0:00:39.4]} 44. Kf4 {[%clk 0:00:07.2]}
44... f5 {[%clk 0:00:35.1]} 45. Kxf5 {[%clk 0:00:07.4]} 1-0

[Event "Late-Titled-Tuesday-Blitz-April-16-2024"]
[Site "Chess.com"]
[Date "2024.04.16"]
[Round "11"]
[White "Vladimir_2020"]
[Black "jcibarra"]
[Result "0-1"]
[WhiteElo "2769"]
[BlackElo "2935"]
[TimeControl "180+1"]
[EndTime "16:05:29 PDT"]
[Termination "jcibarra won on time"]

1. Nf3 {[%clk 0:03:00.9]} 1... d6 {[%clk 0:03:00]} 2. e4 {[%clk 0:02:55.6]} 2...
e5 {[%clk 0:02:58.1]} 3. d4 {[%clk 0:02:53.7]} 3... exd4 {[%clk 0:02:59]} 4.
Nxd4 {[%clk 0:02:53.6]} 4... Nf6 {[%clk 0:02:59.7]} 5. Nc3 {[%clk 0:02:53.5]}
5... Be7 {[%clk 0:03:00.4]} 6. g3 {[%clk 0:02:53.4]} 6... d5 {[%clk 0:03:00.3]}
7. e5 {[%clk 0:02:50.5]} 7... Ng4 {[%clk 0:03:00.9]} 8. Bg2 {[%clk 0:02:49.9]}
8... O-O {[%clk 0:02:59.8]} 9. O-O {[%clk 0:02:49.3]} 9... Nxe5 {[%clk
0:02:53.4]} 10. Nxd5 {[%clk 0:02:43.2]} 10... Bc5 {[%clk 0:02:53.1]} 11. Ne2
{[%clk 0:01:12.4]} 11... Bg4 {[%clk 0:02:46.4]} 12. Ndc3 {[%clk 0:01:09.7]}
12... Nbc6 {[%clk 0:02:37.5]} 13. Bf4 {[%clk 0:01:02.9]} 13... Re8 {[%clk
0:02:33]} 14. Qxd8 {[%clk 0:00:59.8]} 14... Raxd8 {[%clk 0:02:32.6]} 15. h3
{[%clk 0:00:38.1]} 15... Bf5 {[%clk 0:02:20.9]} 16. Rac1 {[%clk 0:00:35.4]}
16... Nb4 {[%clk 0:02:08.5]} 17. a3 {[%clk 0:00:24.7]} 17... Nxc2 {[%clk
0:01:56.3]} 18. Ne4 {[%clk 0:00:24.7]} 18... Nd4 {[%clk 0:01:52.8]} 19. Nxd4
{[%clk 0:00:24.1]} 19... Bxd4 {[%clk 0:01:53.7]} 20. Rxc7 {[%clk 0:00:23.9]}
20... Nd3 {[%clk 0:01:41.9]} 21. Nc3 {[%clk 0:00:16.7]} 21... Nxb2 {[%clk
0:01:22.8]} 22. Nd5 {[%clk 0:00:16.1]} 22... Be6 {[%clk 0:01:23.4]} 23. Nb4
{[%clk 0:00:07.7]} 23... a5 {[%clk 0:01:01.3]} 24. Nc2 {[%clk 0:00:07.7]} 24...
Bf6 {[%clk 0:01:00]} 25. Rxb7 {[%clk 0:00:07.4]} 25... Nd3 {[%clk 0:00:57.3]}
26. Be3 {[%clk 0:00:07.6]} 26... Bc4 {[%clk 0:00:44.1]} 27. Rd1 {[%clk 0:00:07]}
27... h5 {[%clk 0:00:37]} 28. Bf1 {[%clk 0:00:07.1]} 28... Bd5 {[%clk
0:00:31.3]} 29. Ra7 {[%clk 0:00:04.6]} 29... Ne5 {[%clk 0:00:30.9]} 30. Ne1
{[%clk 0:00:03.9]} 30... Nf3+ {[%clk 0:00:24.1]} 31. Nxf3 {[%clk 0:00:03.3]}
31... Bxf3 {[%clk 0:00:25]} 32. Rxd8 {[%clk 0:00:02.4]} 32... Rxd8 {[%clk
0:00:25.9]} 33. Bg2 {[%clk 0:00:02.7]} 33... Bxg2 {[%clk 0:00:18]} 34. Kxg2
{[%clk 0:00:03.1]} 34... Bc3 {[%clk 0:00:18.9]} 35. Bb6 {[%clk 0:00:03.1]} 35...
Rd5 {[%clk 0:00:18.6]} 36. a4 {[%clk 0:00:03.6]} 36... Bb4 {[%clk 0:00:18]} 0-1

[Event "Late-Titled-Tuesday-Blitz-April-16-2024"]
[Site "Chess.com"]
[Date "2024.04.16"]
[Round "11"]
[White "Mariia89"]
[Black "JaackCamel"]
[Result "1-0"]
[WhiteElo "2226"]
[BlackElo "2209"]
[TimeControl "180+1"]
[EndTime "16:05:31 PDT"]
[Termination "Mariia89 won on time"]

1. d4 {[%clk 0:02:59.8]} 1... d5 {[%clk 0:02:59.5]} 2. c4 {[%clk 0:02:59.7]}
2... e6 {[%clk 0:02:59.2]} 3. Nc3 {[%clk 0:02:59.6]} 3... c6 {[%clk 0:02:59.2]}
4. e3 {[%clk 0:02:59.6]} 4... Nf6 {[%clk 0:02:57.7]} 5. Nf3 {[%clk 0:02:59.9]}
5... Nbd7 {[%clk 0:02:57.5]} 6. Bd3 {[%clk 0:03:00.4]} 6... dxc4 {[%clk
0:02:57.8]} 7. Bxc4 {[%clk 0:03:00.3]} 7... b5 {[%clk 0:02:58]} 8. Bd3 {[%clk
0:03:01]} 8... a6 {[%clk 0:02:58.2]} 9. e4 {[%clk 0:03:00.8]} 9... Bb7 {[%clk
0:02:57.9]} 10. e5 {[%clk 0:03:00.1]} 10... Nd5 {[%clk 0:02:56.5]} 11. Ne4
{[%clk 0:03:00.4]} 11... c5 {[%clk 0:02:51.4]} 12. Bg5 {[%clk 0:02:45.1]} 12...
Qb6 {[%clk 0:02:43.9]} 13. dxc5 {[%clk 0:02:32.3]} 13... Nxc5 {[%clk 0:02:38.8]}
14. Nxc5 {[%clk 0:02:32.3]} 14... Bxc5 {[%clk 0:02:33.5]} 15. O-O {[%clk
0:02:32.6]} 15... h6 {[%clk 0:02:31.2]} 16. Bc1 {[%clk 0:02:26.4]} 16... O-O
{[%clk 0:02:29.5]} 17. a3 {[%clk 0:02:25.6]} 17... a5 {[%clk 0:02:21.8]} 18. Qe2
{[%clk 0:02:23.9]} 18... b4 {[%clk 0:02:01.4]} 19. Bd2 {[%clk 0:02:16.7]} 19...
Rfd8 {[%clk 0:01:51.7]} 20. Ne1 {[%clk 0:01:59.7]} 20... Ba6 {[%clk 0:01:35.9]}
21. Qe4 {[%clk 0:01:53.9]} 21... Bxd3 {[%clk 0:01:33.7]} 22. Nxd3 {[%clk
0:01:54.8]} 22... Bd4 {[%clk 0:01:00.5]} 23. Rab1 {[%clk 0:01:31.5]} 23... Ne7
{[%clk 0:01:00]} 24. axb4 {[%clk 0:01:24.3]} 24... a4 {[%clk 0:00:49.9]} 25. Bc3
{[%clk 0:01:20.7]} 25... Nf5 {[%clk 0:00:49.1]} 26. Nc5 {[%clk 0:01:14.8]} 26...
Bxc5 {[%clk 0:00:43.6]} 27. bxc5 {[%clk 0:01:14.6]} 27... Qxc5 {[%clk
0:00:43.4]} 28. h3 {[%clk 0:01:13]} 28... Ng3 {[%clk 0:00:40.4]} 29. Qg4 {[%clk
0:01:07.6]} 29... Nxf1 {[%clk 0:00:36.8]} 30. Rxf1 {[%clk 0:01:08.5]} 30... a3
{[%clk 0:00:36.3]} 31. Bb4 {[%clk 0:01:03.1]} 31... Qxe5 {[%clk 0:00:27.3]} 32.
bxa3 {[%clk 0:01:00.4]} 32... Rd3 {[%clk 0:00:11.7]} 33. Re1 {[%clk 0:00:49.4]}
33... Qf6 {[%clk 0:00:09.9]} 34. Qe4 {[%clk 0:00:48.5]} 34... Rad8 {[%clk
0:00:09.4]} 35. Qe2 {[%clk 0:00:45.2]} 35... Qd4 {[%clk 0:00:07.2]} 36. Rf1
{[%clk 0:00:41.3]} 36... e5 {[%clk 0:00:06.4]} 37. Qh5 {[%clk 0:00:39.8]} 37...
e4 {[%clk 0:00:03.9]} 38. Bc5 {[%clk 0:00:37.5]} 1-0

[Event "Late-Titled-Tuesday-Blitz-April-16-2024"]
[Site "Chess.com"]
[Date "2024.04.16"]
[Round "11"]
[White "sergiochess83"]
[Black "LiemLe"]
[Result "0-1"]
[WhiteElo "2958"]
[BlackElo "3062"]
[TimeControl "180+1"]
[EndTime "16:05:34 PDT"]
[Termination "LiemLe won on time"]

1. d4 {[%clk 0:03:00.9]} 1... Nf6 {[%clk 0:03:00]} 2. c4 {[%clk 0:02:59.7]} 2...
g6 {[%clk 0:03:00.6]} 3. Nc3 {[%clk 0:02:57]} 3... d5 {[%clk 0:03:00.7]} 4. Bg5
{[%clk 0:02:56.6]} 4... Ne4 {[%clk 0:03:00.3]} 5. Bf4 {[%clk 0:02:53.8]} 5...
Nxc3 {[%clk 0:02:57.6]} 6. bxc3 {[%clk 0:02:53.5]} 6... dxc4 {[%clk 0:02:56.8]}
7. e3 {[%clk 0:02:50.4]} 7... Be6 {[%clk 0:02:56.5]} 8. Nf3 {[%clk 0:02:38.6]}
8... Bg7 {[%clk 0:02:37.4]} 9. Qb1 {[%clk 0:02:14.4]} 9... b6 {[%clk 0:02:19.6]}
10. Ng5 {[%clk 0:01:53.9]} 10... Bd5 {[%clk 0:02:18.3]} 11. e4 {[%clk
0:01:51.9]} 11... h6 {[%clk 0:02:18.3]} 12. exd5 {[%clk 0:01:35.5]} 12... hxg5
{[%clk 0:02:18.2]} 13. Qb5+ {[%clk 0:01:35.4]} 13... Qd7 {[%clk 0:02:12.8]} 14.
Qxd7+ {[%clk 0:01:33.3]} 14... Nxd7 {[%clk 0:02:09.2]} 15. Bxg5 {[%clk
0:01:33.8]} 15... b5 {[%clk 0:01:53.2]} 16. a4 {[%clk 0:01:29.7]} 16... b4
{[%clk 0:01:53.6]} 17. cxb4 {[%clk 0:01:15.7]} 17... Bxd4 {[%clk 0:01:53.2]} 18.
Rc1 {[%clk 0:01:14.3]} 18... c3 {[%clk 0:01:44.7]} 19. Bb5 {[%clk 0:01:12.2]}
19... O-O-O {[%clk 0:01:27.3]} 20. Ke2 {[%clk 0:00:42.9]} 20... Nf6 {[%clk
0:01:11.9]} 21. Bxf6 {[%clk 0:00:37.5]} 21... Bxf6 {[%clk 0:01:11.5]} 22. Bc6
{[%clk 0:00:32.6]} 22... Rh4 {[%clk 0:01:04.3]} 23. b5 {[%clk 0:00:17.8]} 23...
e6 {[%clk 0:01:02.2]} 24. dxe6 {[%clk 0:00:14.9]} 24... Rd2+ {[%clk 0:01:01.7]}
25. Kf3 {[%clk 0:00:14.6]} 25... fxe6 {[%clk 0:01:01.7]} 26. g3 {[%clk
0:00:14.7]} 26... Rxa4 {[%clk 0:00:57.9]} 27. Rhe1 {[%clk 0:00:13.4]} 27... Rd6
{[%clk 0:00:40.2]} 28. Ra1 {[%clk 0:00:08.7]} 28... Rxa1 {[%clk 0:00:35.1]} 29.
Rxa1 {[%clk 0:00:09.6]} 29... Kd8 {[%clk 0:00:32.8]} 30. Be4 {[%clk 0:00:06.8]}
30... Rd2 {[%clk 0:00:23.7]} 31. Bxg6 {[%clk 0:00:05.3]} 31... Bd4 {[%clk
0:00:24.2]} 32. h4 {[%clk 0:00:04.5]} 32... Rxf2+ {[%clk 0:00:21.3]} 33. Kg4
{[%clk 0:00:04.9]} 33... Ke7 {[%clk 0:00:20]} 34. Rc1 {[%clk 0:00:03.6]} 34...
Kf6 {[%clk 0:00:17.6]} 35. h5 {[%clk 0:00:04.2]} 35... Kg7 {[%clk 0:00:16.2]}
36. Rc2 {[%clk 0:00:04.1]} 36... Rf1 {[%clk 0:00:15.2]} 37. Ra2 {[%clk
0:00:03.3]} 37... Rf6 {[%clk 0:00:12.2]} 0-1